[Event "*** SCC Grand Prix: Titled Tuesday Blitz"]
[Site "Chess.com"]
[Date "2020.09.29"]
[Round "8"]
[White "ARTHURMOTIVATOR"]
[Black "anasta10"]
[Result "0-1"]
[WhiteElo "2365"]
[BlackElo "2515"]
[TimeControl "180+1"]
[EndTime "11:33:20 PDT"]
[Termination "anasta10 won by checkmate"]

1. e4 {[%clk 0:03:00.9]} 1... e6 {[%clk 0:02:58.8]} 2. b3 {[%clk 0:02:59.5]}
2... d5 {[%clk 0:02:57]} 3. Bb2 {[%clk 0:02:59.6]} 3... dxe4 {[%clk 0:02:52]} 4.
Nc3 {[%clk 0:02:59.6]} 4... Nf6 {[%clk 0:02:49.5]} 5. Qe2 {[%clk 0:02:59.6]}
5... Be7 {[%clk 0:02:49.6]} 6. O-O-O {[%clk 0:02:55.5]} 6... Nc6 {[%clk
0:02:50.1]} 7. Nxe4 {[%clk 0:02:48.2]} 7... a5 {[%clk 0:02:49.9]} 8. a4 {[%clk
0:02:46.9]} 8... O-O {[%clk 0:02:48.2]} 9. Nf3 {[%clk 0:02:38.1]} 9... Nb4
{[%clk 0:02:47.3]} 10. d4 {[%clk 0:02:30.1]} 10... b6 {[%clk 0:02:40.4]} 11. Ne5
{[%clk 0:01:55.2]} 11... Bb7 {[%clk 0:02:35.4]} 12. Nxf6+ {[%clk 0:01:49.5]}
12... Bxf6 {[%clk 0:02:34.1]} 13. Rg1 {[%clk 0:01:47.2]} 13... Qc8 {[%clk
0:02:03.8]} 14. f4 {[%clk 0:01:44.4]} 14... c5 {[%clk 0:02:03.7]} 15. dxc5
{[%clk 0:01:24.2]} 15... Qxc5 {[%clk 0:01:53.3]} 16. Bd4 {[%clk 0:01:09.4]}
16... Qc7 {[%clk 0:01:43.8]} 17. g4 {[%clk 0:01:09.3]} 17... Rac8 {[%clk
0:01:33.7]} 18. Rd2 {[%clk 0:00:58.9]} 18... Nd5 {[%clk 0:01:19.2]} 19. Qf2
{[%clk 0:00:51.1]} 19... Be7 {[%clk 0:01:11.6]} 20. Bc4 {[%clk 0:00:39]} 20...
Ba3+ {[%clk 0:01:11]} 21. Kb1 {[%clk 0:00:38.8]} 21... Bc5 {[%clk 0:01:05.7]}
22. Bxc5 {[%clk 0:00:33.1]} 22... bxc5 {[%clk 0:01:04.7]} 23. g5 {[%clk
0:00:27.6]} 23... Nb6 {[%clk 0:01:04.4]} 24. Rgd1 {[%clk 0:00:24.6]} 24... Nxc4
{[%clk 0:00:56]} 25. Nxc4 {[%clk 0:00:24.2]} 25... Bd5 {[%clk 0:00:56.2]} 26.
Ne3 {[%clk 0:00:22.6]} 26... c4 {[%clk 0:00:54.6]} 27. Nxd5 {[%clk 0:00:19.8]}
27... exd5 {[%clk 0:00:55.2]} 28. Rxd5 {[%clk 0:00:18.8]} 28... cxb3 {[%clk
0:00:55.3]} 29. cxb3 {[%clk 0:00:19]} 29... Rb8 {[%clk 0:00:42.6]} 30. Kb2
{[%clk 0:00:17.1]} 30... Rfc8 {[%clk 0:00:34.9]} 31. Qd2 {[%clk 0:00:15.8]}
31... g6 {[%clk 0:00:27.8]} 32. h4 {[%clk 0:00:15.8]} 32... Qb6 {[%clk
0:00:24.8]} 33. Qd3 {[%clk 0:00:13.7]} 33... Qf2+ {[%clk 0:00:23.3]} 34. Rd2
{[%clk 0:00:12.7]} 34... Qxf4 {[%clk 0:00:22.1]} 35. h5 {[%clk 0:00:11.3]} 35...
Qxa4 {[%clk 0:00:13.4]} 36. h6 {[%clk 0:00:10.5]} 36... Qe8 {[%clk 0:00:12.4]}
37. Qd4 {[%clk 0:00:09.7]} 37... Qf8 {[%clk 0:00:12.5]} 38. Rd7 {[%clk
0:00:08.4]} 38... Rb4 {[%clk 0:00:08.8]} 39. Qf6 {[%clk 0:00:07]} 39... Rbb8
{[%clk 0:00:08.6]} 40. Rf2 {[%clk 0:00:05.8]} 40... a4 {[%clk 0:00:08.3]} 41.
Rxf7 {[%clk 0:00:05.4]} 41... Rxb3+ {[%clk 0:00:08.6]} 42. Ka1 {[%clk
0:00:03.2]} 42... Qa3+ {[%clk 0:00:09.1]} 43. Ra2 {[%clk 0:00:02.2]} 43... Qc1#
{[%clk 0:00:09.5]} 0-1

[Event "*** SCC Grand Prix: Titled Tuesday Blitz"]
[Site "Chess.com"]
[Date "2020.09.29"]
[Round "8"]
[White "sorrm8thatscheckm8"]
[Black "parintele_chess"]
[Result "1-0"]
[WhiteElo "2452"]
[BlackElo "2130"]
[TimeControl "180+1"]
[EndTime "11:33:24 PDT"]
[Termination "sorrm8thatscheckm8 won by resignation"]

1. d4 {[%clk 0:03:00.9]} 1... Nf6 {[%clk 0:02:59.4]} 2. c4 {[%clk 0:03:01.5]}
2... g6 {[%clk 0:02:59.2]} 3. Nc3 {[%clk 0:03:01.7]} 3... Bg7 {[%clk 0:02:59.6]}
4. e4 {[%clk 0:03:01.5]} 4... d6 {[%clk 0:03:00.1]} 5. h3 {[%clk 0:03:00.9]}
5... O-O {[%clk 0:02:59.9]} 6. Nf3 {[%clk 0:03:01.2]} 6... e5 {[%clk 0:02:57.7]}
7. d5 {[%clk 0:03:00.9]} 7... a5 {[%clk 0:02:57.1]} 8. Be3 {[%clk 0:03:01.3]}
8... Na6 {[%clk 0:02:54.4]} 9. Bd3 {[%clk 0:03:02.2]} 9... Nd7 {[%clk
0:02:48.3]} 10. Bc2 {[%clk 0:02:59.8]} 10... f5 {[%clk 0:02:46.1]} 11. exf5
{[%clk 0:02:58.6]} 11... gxf5 {[%clk 0:02:47]} 12. Ng5 {[%clk 0:02:57.5]} 12...
Nf6 {[%clk 0:02:34.7]} 13. Ne6 {[%clk 0:02:53.8]} 13... Bxe6 {[%clk 0:02:34.4]}
14. dxe6 {[%clk 0:02:54.7]} 14... f4 {[%clk 0:02:28.7]} 15. Bd2 {[%clk
0:02:47.3]} 15... Nb4 {[%clk 0:02:25.5]} 16. Bb1 {[%clk 0:02:34.6]} 16... Qe7
{[%clk 0:02:21.8]} 17. a3 {[%clk 0:02:33.5]} 17... Qxe6 {[%clk 0:02:10.8]} 18.
axb4 {[%clk 0:02:31.6]} 18... axb4 {[%clk 0:02:11.7]} 19. Rxa8 {[%clk
0:02:31.3]} 19... Rxa8 {[%clk 0:02:10.9]} 20. Nd5 {[%clk 0:02:30.6]} 20... Nxd5
{[%clk 0:02:04.7]} 21. cxd5 {[%clk 0:02:31.4]} 21... Qxd5 {[%clk 0:02:05.5]} 22.
O-O {[%clk 0:02:31.1]} 22... Ra1 {[%clk 0:01:52.2]} 23. Bxh7+ {[%clk 0:02:18.6]}
23... Kxh7 {[%clk 0:01:52.1]} 24. Qc2+ {[%clk 0:02:18.4]} 24... e4 {[%clk
0:01:46.2]} 25. Rxa1 {[%clk 0:02:18.1]} 25... b3 {[%clk 0:01:46.4]} 26. Qc1
{[%clk 0:02:06]} 26... f3 {[%clk 0:01:43.8]} 27. gxf3 {[%clk 0:01:39.3]} 27...
exf3 {[%clk 0:01:42.7]} 28. Qb1+ {[%clk 0:01:35.3]} 28... Kg8 {[%clk 0:01:36.7]}
29. Ra8+ {[%clk 0:01:34.7]} 29... Kf7 {[%clk 0:01:37]} 30. Qe1 {[%clk
0:01:27.4]} 30... Be5 {[%clk 0:01:23.7]} 31. Qe3 {[%clk 0:00:45.6]} 31... Ke7
{[%clk 0:00:50.8]} 32. Qg5+ {[%clk 0:00:33.4]} 32... Kd7 {[%clk 0:00:50.3]} 33.
Qg6 {[%clk 0:00:31]} 33... Kc6 {[%clk 0:00:42.2]} 34. Ra5 {[%clk 0:00:26.3]}
34... b5 {[%clk 0:00:23.5]} 35. Qe8+ {[%clk 0:00:18.9]} 35... Kb6 {[%clk
0:00:21.6]} 36. Qb8+ {[%clk 0:00:16.6]} 36... Kc6 {[%clk 0:00:21.8]} 37. Qa8+
{[%clk 0:00:15.6]} 37... Kc5 {[%clk 0:00:19.8]} 38. Rxb5+ {[%clk 0:00:10]} 38...
Kxb5 {[%clk 0:00:20.6]} 39. Qxd5+ {[%clk 0:00:10.7]} 39... c5 {[%clk 0:00:21.5]}
40. Qxb3+ {[%clk 0:00:09.9]} 40... Kc6 {[%clk 0:00:22.2]} 41. Bc3 {[%clk
0:00:09.9]} 41... Bf4 {[%clk 0:00:21.9]} 42. Qc4 {[%clk 0:00:09.3]} 42... Bc1
{[%clk 0:00:20.8]} 43. Qe4+ {[%clk 0:00:08.8]} 43... d5 {[%clk 0:00:20.7]} 44.
Qe6+ {[%clk 0:00:09.4]} 44... Kb5 {[%clk 0:00:20.1]} 45. Qxd5 {[%clk 0:00:10]}
1-0

[Event "*** SCC Grand Prix: Titled Tuesday Blitz"]
[Site "Chess.com"]
[Date "2020.09.29"]
[Round "8"]
[White "Sethu0025"]
[Black "m_ezat"]
[Result "0-1"]
[WhiteElo "2760"]
[BlackElo "2642"]
[TimeControl "180+1"]
[EndTime "11:33:27 PDT"]
[Termination "m_ezat won on time"]

1. d4 {[%clk 0:03:00.9]} 1... Nf6 {[%clk 0:02:55.1]} 2. c4 {[%clk 0:03:00.7]}
2... g6 {[%clk 0:02:55.4]} 3. Nc3 {[%clk 0:03:00.5]} 3... Bg7 {[%clk 0:02:54.9]}
4. e4 {[%clk 0:03:00.6]} 4... d6 {[%clk 0:02:55.3]} 5. h3 {[%clk 0:03:00.9]}
5... O-O {[%clk 0:02:54.3]} 6. Be3 {[%clk 0:03:01.5]} 6... e5 {[%clk 0:02:54.2]}
7. d5 {[%clk 0:03:00.6]} 7... Na6 {[%clk 0:02:53.1]} 8. Qc2 {[%clk 0:02:54.7]}
8... Nc5 {[%clk 0:02:50.1]} 9. Be2 {[%clk 0:02:52.7]} 9... a5 {[%clk 0:02:49]}
10. Nf3 {[%clk 0:02:48.6]} 10... c6 {[%clk 0:02:40.8]} 11. Nd2 {[%clk
0:02:46.4]} 11... Bd7 {[%clk 0:02:35.9]} 12. g4 {[%clk 0:02:36.2]} 12... a4
{[%clk 0:02:21.3]} 13. Kf1 {[%clk 0:02:20]} 13... Qa5 {[%clk 0:02:15.2]} 14. a3
{[%clk 0:02:16.2]} 14... cxd5 {[%clk 0:02:06.7]} 15. cxd5 {[%clk 0:02:16]} 15...
b5 {[%clk 0:02:06.4]} 16. f3 {[%clk 0:02:14.3]} 16... Rfc8 {[%clk 0:01:59.2]}
17. Kg2 {[%clk 0:02:12.3]} 17... Rc7 {[%clk 0:01:47.9]} 18. Rac1 {[%clk
0:02:07.7]} 18... Rac8 {[%clk 0:01:46.8]} 19. Qb1 {[%clk 0:02:07.8]} 19... Rb7
{[%clk 0:01:38.9]} 20. Na2 {[%clk 0:02:06.9]} 20... Rbc7 {[%clk 0:01:34.2]} 21.
Nb4 {[%clk 0:02:05.8]} 21... Na6 {[%clk 0:01:28.4]} 22. Nxa6 {[%clk 0:01:54.3]}
22... Qxa6 {[%clk 0:01:27.7]} 23. Rxc7 {[%clk 0:01:55.2]} 23... Rxc7 {[%clk
0:01:27]} 24. Rc1 {[%clk 0:01:56.1]} 24... Qc8 {[%clk 0:01:26.9]} 25. Rxc7
{[%clk 0:01:52.6]} 25... Qxc7 {[%clk 0:01:27.4]} 26. Qd1 {[%clk 0:01:42.6]}
26... Ne8 {[%clk 0:01:24.8]} 27. Nb1 {[%clk 0:01:41.6]} 27... Bf8 {[%clk
0:01:18.8]} 28. Qd2 {[%clk 0:01:39.3]} 28... Be7 {[%clk 0:01:14.9]} 29. Bd3
{[%clk 0:01:34.3]} 29... f5 {[%clk 0:01:03]} 30. Qb4 {[%clk 0:01:31.8]} 30...
fxe4 {[%clk 0:01:02.7]} 31. fxe4 {[%clk 0:01:30.4]} 31... Nf6 {[%clk 0:01:02.4]}
32. Nc3 {[%clk 0:01:27.2]} 32... h5 {[%clk 0:00:59.2]} 33. g5 {[%clk 0:01:19.2]}
33... Qc8 {[%clk 0:00:57.3]} 34. gxf6 {[%clk 0:01:16.3]} 34... Bxh3+ {[%clk
0:00:56.6]} 35. Kf2 {[%clk 0:01:16.2]} 35... Bxf6 {[%clk 0:00:55]} 36. Ke1
{[%clk 0:01:11.7]} 36... h4 {[%clk 0:00:47.1]} 37. Qxd6 {[%clk 0:01:10.3]} 37...
Kg7 {[%clk 0:00:45.6]} 38. Bh6+ {[%clk 0:00:50]} 38... Kf7 {[%clk 0:00:43.4]}
39. Nxb5 {[%clk 0:00:46.7]} 39... g5 {[%clk 0:00:40.1]} 40. Bxg5 {[%clk
0:00:32.2]} 40... Bxg5 {[%clk 0:00:37.5]} 41. Nc7 {[%clk 0:00:11.1]} 41... Qg4
{[%clk 0:00:31.5]} 42. Qe6+ {[%clk 0:00:07.3]} 42... Qxe6 {[%clk 0:00:30.9]} 43.
Nxe6 {[%clk 0:00:08]} 43... Bc1 {[%clk 0:00:29.2]} 44. Bb5 {[%clk 0:00:05.4]}
44... Bg2 {[%clk 0:00:25.3]} 45. Bxa4 {[%clk 0:00:04.4]} 45... Bxe4 {[%clk
0:00:24.9]} 46. Bb3 {[%clk 0:00:04.3]} 46... h3 {[%clk 0:00:22.4]} 0-1

[Event "*** SCC Grand Prix: Titled Tuesday Blitz"]
[Site "Chess.com"]
[Date "2020.09.29"]
[Round "8"]
[White "Snegokhod"]
[Black "Misticpikachu"]
[Result "1-0"]
[WhiteElo "2413"]
[BlackElo "2310"]
[TimeControl "180+1"]
[EndTime "11:33:29 PDT"]
[Termination "Snegokhod won on time"]

1. e4 {[%clk 0:03:00.9]} 1... c5 {[%clk 0:02:53.7]} 2. Nf3 {[%clk 0:03:00.3]}
2... Nc6 {[%clk 0:02:53.6]} 3. d4 {[%clk 0:02:55.7]} 3... cxd4 {[%clk
0:02:53.8]} 4. Nxd4 {[%clk 0:02:56]} 4... Nf6 {[%clk 0:02:53.4]} 5. Nc3 {[%clk
0:02:55.7]} 5... e6 {[%clk 0:02:53.4]} 6. Ndb5 {[%clk 0:02:54.9]} 6... Bb4
{[%clk 0:02:53]} 7. a3 {[%clk 0:02:52.1]} 7... Bxc3+ {[%clk 0:02:52]} 8. Nxc3
{[%clk 0:02:53]} 8... d5 {[%clk 0:02:52.3]} 9. Bd3 {[%clk 0:02:53]} 9... O-O
{[%clk 0:02:49.8]} 10. O-O {[%clk 0:02:50.3]} 10... b6 {[%clk 0:02:36.1]} 11.
Bg5 {[%clk 0:02:49.1]} 11... d4 {[%clk 0:02:19.9]} 12. Ne2 {[%clk 0:02:46.3]}
12... e5 {[%clk 0:02:18.1]} 13. f4 {[%clk 0:02:37.1]} 13... Qd6 {[%clk
0:02:12.2]} 14. fxe5 {[%clk 0:02:31.1]} 14... Qxe5 {[%clk 0:02:12.7]} 15. Bxf6
{[%clk 0:02:26.6]} 15... gxf6 {[%clk 0:02:13.6]} 16. Ng3 {[%clk 0:02:26.3]}
16... Qg5 {[%clk 0:02:09.1]} 17. Rf2 {[%clk 0:02:18.8]} 17... Ne5 {[%clk
0:02:05]} 18. Qd2 {[%clk 0:02:08.9]} 18... Ng4 {[%clk 0:01:59]} 19. Rf4 {[%clk
0:02:05.9]} 19... Ne3 {[%clk 0:01:54.2]} 20. Qf2 {[%clk 0:02:05.5]} 20... Ng4
{[%clk 0:01:48.2]} 21. Qf3 {[%clk 0:02:02]} 21... Be6 {[%clk 0:01:25.9]} 22. h3
{[%clk 0:01:55.2]} 22... Ne5 {[%clk 0:01:25]} 23. Qf2 {[%clk 0:01:54.6]} 23...
Kh8 {[%clk 0:01:24.1]} 24. Kh2 {[%clk 0:01:53.9]} 24... Rg8 {[%clk 0:01:19.7]}
25. Rxf6 {[%clk 0:01:48.1]} 25... Qh4 {[%clk 0:01:14.8]} 26. Rf4 {[%clk
0:01:19.6]} 26... Rg4 {[%clk 0:01:03.8]} 27. Nf5 {[%clk 0:01:10.4]} 27... Rxf4
{[%clk 0:01:02.9]} 28. Qxh4 {[%clk 0:01:10.1]} 28... Rxh4 {[%clk 0:00:59.9]} 29.
Nxh4 {[%clk 0:01:10]} 29... Rc8 {[%clk 0:00:48.9]} 30. Nf3 {[%clk 0:01:04.7]}
30... Nxd3 {[%clk 0:00:36.1]} 31. cxd3 {[%clk 0:01:04.6]} 31... Rc2 {[%clk
0:00:37]} 32. Nxd4 {[%clk 0:01:03.5]} 32... Rxb2 {[%clk 0:00:37.4]} 33. Rc1
{[%clk 0:00:51.7]} 33... Ra2 {[%clk 0:00:29.2]} 34. Rc3 {[%clk 0:00:51.3]} 34...
a5 {[%clk 0:00:26.8]} 35. Nxe6 {[%clk 0:00:44.5]} 35... fxe6 {[%clk 0:00:26.8]}
36. Kg3 {[%clk 0:00:38.7]} 36... Kg7 {[%clk 0:00:27]} 37. Kf4 {[%clk 0:00:37.7]}
37... Rxg2 {[%clk 0:00:25.8]} 38. Ke5 {[%clk 0:00:37.7]} 38... Rg3 {[%clk
0:00:17.1]} 39. Kxe6 {[%clk 0:00:36.8]} 39... Rxh3 {[%clk 0:00:17.6]} 40. e5
{[%clk 0:00:34.6]} 40... Re3 {[%clk 0:00:14.1]} 41. Rc7+ {[%clk 0:00:32.7]}
41... Kg6 {[%clk 0:00:14]} 42. d4 {[%clk 0:00:33.2]} 42... h5 {[%clk 0:00:12.5]}
43. Rc8 {[%clk 0:00:32.7]} 43... Kg7 {[%clk 0:00:11.4]} 44. d5 {[%clk
0:00:30.6]} 44... h4 {[%clk 0:00:08.8]} 45. Rc4 {[%clk 0:00:30.1]} 45... h3
{[%clk 0:00:05.9]} 46. d6 {[%clk 0:00:27.8]} 46... Kf8 {[%clk 0:00:02.4]} 47.
Rc8+ {[%clk 0:00:26.7]} 47... Kg7 {[%clk 0:00:02.2]} 48. d7 {[%clk 0:00:24.7]}
48... Rd3 {[%clk 0:00:01.4]} 49. d8=Q {[%clk 0:00:23.8]} 49... Rxd8 {[%clk
0:00:01.8]} 50. Rxd8 {[%clk 0:00:23.1]} 50... h2 {[%clk 0:00:02.7]} 51. Rd1
{[%clk 0:00:22.5]} 51... h1=Q {[%clk 0:00:03.6]} 52. Rxh1 {[%clk 0:00:22.2]} 1-0

[Event "*** SCC Grand Prix: Titled Tuesday Blitz"]
[Site "Chess.com"]
[Date "2020.09.29"]
[Round "8"]
[White "anon481216"]
[Black "denispopov"]
[Result "1-0"]
[WhiteElo "2421"]
[BlackElo "1985"]
[TimeControl "180+1"]
[EndTime "11:33:29 PDT"]
[Termination "anon481216 won by resignation"]

1. d4 {[%clk 0:03:00.9]} 1... Nf6 {[%clk 0:02:18.5]} 2. c4 {[%clk 0:03:00.5]}
2... g6 {[%clk 0:02:18.4]} 3. Nc3 {[%clk 0:02:59.3]} 3... d5 {[%clk 0:02:18.3]}
4. Bg5 {[%clk 0:02:58.4]} 4... Ne4 {[%clk 0:02:17.5]} 5. Bh4 {[%clk 0:02:49.1]}
5... Nxc3 {[%clk 0:02:05.9]} 6. bxc3 {[%clk 0:02:47.9]} 6... c5 {[%clk
0:02:03.2]} 7. e3 {[%clk 0:02:46.1]} 7... Bg7 {[%clk 0:02:02.5]} 8. Nf3 {[%clk
0:02:42.4]} 8... O-O {[%clk 0:01:55.6]} 9. cxd5 {[%clk 0:02:41.7]} 9... Qxd5
{[%clk 0:01:56.5]} 10. Be2 {[%clk 0:02:41.4]} 10... Bf5 {[%clk 0:01:40]} 11.
Bxe7 {[%clk 0:02:38.9]} 11... Rc8 {[%clk 0:01:17.6]} 12. O-O {[%clk 0:02:30.2]}
12... cxd4 {[%clk 0:01:09.8]} 13. cxd4 {[%clk 0:02:28.7]} 13... Nc6 {[%clk
0:01:08.5]} 14. Ba3 {[%clk 0:02:24.8]} 14... Qa5 {[%clk 0:01:04.2]} 15. Qb3
{[%clk 0:02:20]} 15... Be6 {[%clk 0:01:01.2]} 16. Qb2 {[%clk 0:02:19.4]} 16...
Rab8 {[%clk 0:00:53.4]} 17. Rac1 {[%clk 0:02:17.7]} 17... b5 {[%clk 0:00:32.5]}
18. Bd6 {[%clk 0:02:16.5]} 18... Rb7 {[%clk 0:00:32]} 19. Ne5 {[%clk 0:02:02.7]}
19... Nxe5 {[%clk 0:00:25.3]} 20. Rxc8+ {[%clk 0:02:01.9]} 20... Bxc8 {[%clk
0:00:26.2]} 21. dxe5 {[%clk 0:02:00.3]} 21... Be6 {[%clk 0:00:19.4]} 22. a3
{[%clk 0:01:58.4]} 22... a6 {[%clk 0:00:18.8]} 23. Rc1 {[%clk 0:01:57.3]} 23...
Qd8 {[%clk 0:00:15.9]} 24. Qd4 {[%clk 0:01:46.5]} 24... Rd7 {[%clk 0:00:14.9]}
25. Bg4 {[%clk 0:01:13.9]} 25... Bxg4 {[%clk 0:00:12.2]} 26. Qxg4 {[%clk
0:01:13.1]} 26... h5 {[%clk 0:00:11.5]} 27. Qf3 {[%clk 0:01:06.9]} 27... Qe8
{[%clk 0:00:10.1]} 28. Qd5 {[%clk 0:01:00.9]} 28... Bf8 {[%clk 0:00:07.2]} 29.
g3 {[%clk 0:00:56.6]} 29... Bxd6 {[%clk 0:00:05.9]} 30. exd6 {[%clk 0:00:56.7]}
30... Qe6 {[%clk 0:00:05.9]} 31. Qxe6 {[%clk 0:00:51.1]} 31... fxe6 {[%clk
0:00:06.8]} 32. Rc6 {[%clk 0:00:44.3]} 32... a5 {[%clk 0:00:06.6]} 33. e4 {[%clk
0:00:44.3]} 33... b4 {[%clk 0:00:06.1]} 34. axb4 {[%clk 0:00:44.1]} 34... axb4
{[%clk 0:00:06.6]} 35. e5 {[%clk 0:00:43.8]} 35... Kf7 {[%clk 0:00:06.6]} 36.
Rb6 {[%clk 0:00:43.3]} 36... g5 {[%clk 0:00:05.1]} 37. Rxb4 {[%clk 0:00:42]}
37... Kg6 {[%clk 0:00:05.6]} 38. f4 {[%clk 0:00:30.1]} 38... gxf4 {[%clk
0:00:04.8]} 39. Rxf4 {[%clk 0:00:29.1]} 39... Ra7 {[%clk 0:00:03.2]} 40. Rf6+
{[%clk 0:00:28.8]} 40... Kg5 {[%clk 0:00:03.6]} 41. Rxe6 {[%clk 0:00:29.1]}
41... Kf5 {[%clk 0:00:04]} 42. Re7 {[%clk 0:00:25.7]} 42... Ra8 {[%clk
0:00:03.9]} 43. Kg2 {[%clk 0:00:23.9]} 43... Rd8 {[%clk 0:00:03.6]} 44. Kh3
{[%clk 0:00:21]} 44... Kg6 {[%clk 0:00:02.4]} 45. d7 {[%clk 0:00:20.9]} 45...
Kg5 {[%clk 0:00:01.9]} 46. e6 {[%clk 0:00:20.7]} 46... Kf6 {[%clk 0:00:02.8]}
47. Re8 {[%clk 0:00:19.3]} 1-0

[Event "*** SCC Grand Prix: Titled Tuesday Blitz"]
[Site "Chess.com"]
[Date "2020.09.29"]
[Round "8"]
[White "Evgeny81"]
[Black "Kumi29"]
[Result "1-0"]
[WhiteElo "2669"]
[BlackElo "2423"]
[TimeControl "180+1"]
[EndTime "11:33:33 PDT"]
[Termination "Evgeny81 won by resignation"]

1. Nf3 {[%clk 0:03:00.9]} 1... b6 {[%clk 0:02:59.6]} 2. g3 {[%clk 0:03:01.4]}
2... Bb7 {[%clk 0:02:59.6]} 3. Bg2 {[%clk 0:03:02.3]} 3... e6 {[%clk 0:03:00.1]}
4. O-O {[%clk 0:03:02.6]} 4... f5 {[%clk 0:03:00.7]} 5. c4 {[%clk 0:03:03]} 5...
Nf6 {[%clk 0:02:59.8]} 6. b3 {[%clk 0:03:01.7]} 6... Be7 {[%clk 0:02:59.4]} 7.
Bb2 {[%clk 0:03:02]} 7... O-O {[%clk 0:03:00]} 8. d3 {[%clk 0:03:02.3]} 8... h6
{[%clk 0:02:59.1]} 9. Nc3 {[%clk 0:03:00.9]} 9... d6 {[%clk 0:02:55.8]} 10. Qc2
{[%clk 0:02:55.2]} 10... e5 {[%clk 0:02:51.1]} 11. e4 {[%clk 0:02:54.6]} 11...
fxe4 {[%clk 0:02:49.5]} 12. dxe4 {[%clk 0:02:53.5]} 12... a5 {[%clk 0:02:47.1]}
13. Nd5 {[%clk 0:02:51.7]} 13... Nxd5 {[%clk 0:02:42.1]} 14. exd5 {[%clk
0:02:45.6]} 14... Nd7 {[%clk 0:02:35.4]} 15. Nd2 {[%clk 0:02:39.2]} 15... Qe8
{[%clk 0:02:30.2]} 16. Bh3 {[%clk 0:02:35.5]} 16... Nc5 {[%clk 0:02:23.5]} 17.
Rae1 {[%clk 0:02:25.2]} 17... Qh5 {[%clk 0:02:22.1]} 18. Bg2 {[%clk 0:02:25.7]}
18... Bc8 {[%clk 0:02:15.2]} 19. Ne4 {[%clk 0:02:24.9]} 19... Nxe4 {[%clk
0:02:10]} 20. Qxe4 {[%clk 0:02:20.2]} 20... Bf6 {[%clk 0:01:58.7]} 21. Qe2
{[%clk 0:02:14.3]} 21... Bg4 {[%clk 0:01:55.9]} 22. f3 {[%clk 0:02:13]} 22...
Bh3 {[%clk 0:01:54]} 23. Bxh3 {[%clk 0:02:03.6]} 23... Qxh3 {[%clk 0:01:54.9]}
24. Qg2 {[%clk 0:02:03.6]} 24... Qf5 {[%clk 0:01:51.2]} 25. Re4 {[%clk
0:02:02.1]} 25... Rae8 {[%clk 0:01:42.9]} 26. h4 {[%clk 0:02:00.9]} 26... Re7
{[%clk 0:01:29.9]} 27. Kh2 {[%clk 0:02:00.2]} 27... Ref7 {[%clk 0:01:26.3]} 28.
Qh3 {[%clk 0:02:00]} 28... Bd8 {[%clk 0:01:19.6]} 29. Qxf5 {[%clk 0:01:58.5]}
29... Rxf5 {[%clk 0:01:20.5]} 30. Kg2 {[%clk 0:01:58.6]} 30... g5 {[%clk
0:01:19.9]} 31. h5 {[%clk 0:01:44.5]} 31... Kg7 {[%clk 0:01:16.2]} 32. Bc1
{[%clk 0:01:40.1]} 32... R5f7 {[%clk 0:01:08.9]} 33. Be3 {[%clk 0:01:36.3]}
33... Be7 {[%clk 0:01:05.6]} 34. a3 {[%clk 0:01:35.2]} 34... Ra8 {[%clk
0:01:03.1]} 35. Rf2 {[%clk 0:01:34.9]} 35... Bd8 {[%clk 0:01:00.9]} 36. f4
{[%clk 0:01:27.9]} 36... gxf4 {[%clk 0:01:00.2]} 37. gxf4 {[%clk 0:01:27.9]}
37... exf4 {[%clk 0:00:59.5]} 38. Rfxf4 {[%clk 0:01:25.4]} 38... Rxf4 {[%clk
0:00:56]} 39. Bxf4 {[%clk 0:01:25.5]} 39... Bf6 {[%clk 0:00:55.1]} 40. Re6
{[%clk 0:01:20.6]} 40... Rg8 {[%clk 0:00:54.7]} 41. Kf3 {[%clk 0:01:18.3]} 41...
Rf8 {[%clk 0:00:53.3]} 42. Ke4 {[%clk 0:01:17.7]} 42... Rf7 {[%clk 0:00:48.2]}
43. Re8 {[%clk 0:01:15.4]} 43... Bg5 {[%clk 0:00:25.9]} 44. Bg3 {[%clk
0:01:01.1]} 44... Rd7 {[%clk 0:00:18.4]} 45. Be1 {[%clk 0:00:49]} 45... Kf7
{[%clk 0:00:17.8]} 46. Re6 {[%clk 0:00:48.6]} 46... Rd8 {[%clk 0:00:06.7]} 47.
Kf5 {[%clk 0:00:46]} 47... Rg8 {[%clk 0:00:06.4]} 48. Bc3 {[%clk 0:00:34.4]}
48... Ra8 {[%clk 0:00:06.4]} 49. Rg6 {[%clk 0:00:33.5]} 49... Re8 {[%clk
0:00:05.9]} 50. Rg7+ {[%clk 0:00:32.5]} 50... Kf8 {[%clk 0:00:06.4]} 51. Rxc7
{[%clk 0:00:31.6]} 51... Re3 {[%clk 0:00:06.9]} 52. Bg7+ {[%clk 0:00:30]} 52...
Kg8 {[%clk 0:00:06.5]} 53. Kg6 {[%clk 0:00:29.7]} 53... Bd8 {[%clk 0:00:03.4]}
54. Rc8 {[%clk 0:00:26.2]} 54... Rg3+ {[%clk 0:00:02.9]} 55. Kxh6 {[%clk
0:00:23.5]} 55... Rxg7 {[%clk 0:00:01.4]} 56. Rxd8+ {[%clk 0:00:23.6]} 56... Kf7
{[%clk 0:00:02.3]} 57. Rd7+ {[%clk 0:00:24.2]} 1-0